[Event "Titled Tuesday Blitz November 07 Early 2023"]
[White "Yelisieiev, Yevhenii"]
[Black "Skuhala, Barbara"]
[WhiteFideId "14139642"]
[BlackFideId "14605465"]
[WhiteElo "2669"]
[BlackElo "2223"]
[Result "0-1"]
[Round "2"]
[TimeControl "180+1"]
[Date "2023.11.07"]
[WhiteClock "0:00:18"]
[BlackClock "0:00:19"]
[Board "113"]

1. d4 {[%clk 0:03:00]}  Nf6 {[%clk 0:02:56]} 2. Nf3 {[%clk 0:03:01]}  e6 {[%clk 0:02:55]} 3. c4 {[%clk 0:03:01]}  b6 {[%clk 0:02:54]} 4. a3 {[%clk 0:02:59]}  Bb7 {[%clk 0:02:51]} 5. Nc3 {[%clk 0:03:00]}  Ne4 {[%clk 0:02:50]} 6. Qc2 {[%clk 0:02:56]}  Nxc3 {[%clk 0:02:49]} 7. Qxc3 {[%clk 0:02:56]}  Be7 {[%clk 0:02:49]} 8. Bf4 {[%clk 0:02:56]}  c5 {[%clk 0:02:49]} 9. e3 {[%clk 0:02:40]}  O-O {[%clk 0:02:48]} 10. Be2 {[%clk 0:02:37]}  Nc6 {[%clk 0:02:47]} 11. d5 {[%clk 0:02:34]}  Bf6 {[%clk 0:02:46]} 12. Qc2 {[%clk 0:02:33]}  Ne7 {[%clk 0:02:42]} 13. e4 {[%clk 0:02:31]}  Ng6 {[%clk 0:02:41]} 14. Bg3 {[%clk 0:02:19]}  d6 {[%clk 0:02:36]} 15. dxe6 {[%clk 0:02:14]}  fxe6 {[%clk 0:02:34]} 16. Rd1 {[%clk 0:02:15]}  e5 {[%clk 0:02:29]} 17. O-O {[%clk 0:02:14]}  Qe7 {[%clk 0:02:29]} 18. Nd2 {[%clk 0:02:13]}  Rad8 {[%clk 0:02:29]} 19. Nb1 {[%clk 0:02:05]}  Bc6 {[%clk 0:02:26]} 20. Nc3 {[%clk 0:02:05]}  Nf4 {[%clk 0:02:14]} 21. Bg4 {[%clk 0:01:46]}  Kh8 {[%clk 0:02:03]} 22. Rfe1 {[%clk 0:01:36]}  Bg5 {[%clk 0:02:03]} 23. b4 {[%clk 0:01:25]}  Qf6 {[%clk 0:01:56]} 24. b5 {[%clk 0:01:21]}  Bb7 {[%clk 0:01:56]} 25. a4 {[%clk 0:01:07]}  h5 {[%clk 0:01:49]} 26. Bxf4 {[%clk 0:01:00]}  hxg4 {[%clk 0:01:48]} 27. Bg3 {[%clk 0:00:56]}  Bf4 {[%clk 0:01:45]} 28. Rd3 {[%clk 0:00:51]}  Qg5 {[%clk 0:01:44]} 29. Qe2 {[%clk 0:00:46]}  Rf6 {[%clk 0:01:42]} 30. Red1 {[%clk 0:00:44]}  Rh6 {[%clk 0:01:39]} 31. Bxf4 {[%clk 0:00:28]}  exf4 {[%clk 0:01:38]} 32. e5 {[%clk 0:00:27]}  Qh4 {[%clk 0:00:33]} 33. h3 {[%clk 0:00:25]}  f3 {[%clk 0:00:33]} 34. Qe3 {[%clk 0:00:17]}  fxg2 {[%clk 0:00:29]} 35. Rxd6 {[%clk 0:00:08]}  Rhxd6 {[%clk 0:00:19]} 36. Rxd6 {[%clk 0:00:09]}  gxh3 {[%clk 0:00:19]} 37. Kh2 {[%clk 0:00:08]}  Bc8 {[%clk 0:00:16]} 38. Rxd8+ {[%clk 0:00:08]}  Qxd8 {[%clk 0:00:14]} 39. Nd5 {[%clk 0:00:08]}  Qe8 {[%clk 0:00:12]} 40. Nf4 {[%clk 0:00:06]}  Bf5 {[%clk 0:00:11]} 41. Nxh3 {[%clk 0:00:06]}  Qh5 {[%clk 0:00:11]} 42. f4 {[%clk 0:00:06]}  Qxh3+ {[%clk 0:00:09]} 43. Qxh3+ {[%clk 0:00:06]}  Bxh3 {[%clk 0:00:10]} 44. f5 {[%clk 0:00:02]}  Bxf5 {[%clk 0:00:10]} 45. Kxg2 {[%clk 0:00:02]}  Be6 {[%clk 0:00:10]} 46. Kf3 {[%clk 0:00:03]}  Bxc4 {[%clk 0:00:11]} 47. Ke4 {[%clk 0:00:03]}  Kg8 {[%clk 0:00:11]} 48. Kf5 {[%clk 0:00:03]}  Kf8 {[%clk 0:00:11]} 49. e6 {[%clk 0:00:04]}  Ke7 {[%clk 0:00:09]} 50. Kg6 {[%clk 0:00:05]}  Bb3 {[%clk 0:00:10]} 51. Kxg7 {[%clk 0:00:06]}  Bxa4 {[%clk 0:00:11]} 52. Kg6 {[%clk 0:00:06]}  Bxb5 {[%clk 0:00:11]} 53. Kf5 {[%clk 0:00:07]}  Bc4 {[%clk 0:00:12]} 54. Ke5 {[%clk 0:00:08]}  Bxe6 {[%clk 0:00:13]} 55. Ke4 {[%clk 0:00:08]}  a5 {[%clk 0:00:14]} 56. Kd3 {[%clk 0:00:09]}  a4 {[%clk 0:00:14]} 57. Kc3 {[%clk 0:00:10]}  b5 {[%clk 0:00:15]} 58. Kb2 {[%clk 0:00:11]}  Kd6 {[%clk 0:00:15]} 59. Ka3 {[%clk 0:00:12]}  Kd5 {[%clk 0:00:15]} 60. Ka2 {[%clk 0:00:13]}  b4 {[%clk 0:00:16]} 61. Kb2 {[%clk 0:00:13]}  a3+ {[%clk 0:00:16]} 62. Ka2 {[%clk 0:00:14]}  Kd4+ {[%clk 0:00:17]} 63. Kb1 {[%clk 0:00:14]}  c4 {[%clk 0:00:18]} 64. Ka1 {[%clk 0:00:15]}  c3 {[%clk 0:00:18]} 65. Kb1 {[%clk 0:00:16]}  Bf5+ {[%clk 0:00:17]} 66. Ka1 {[%clk 0:00:16]}  c2 {[%clk 0:00:18]} 67. Ka2 {[%clk 0:00:16]}  b3+ {[%clk 0:00:18]} 68. Kxb3 {[%clk 0:00:17]}  c1=Q {[%clk 0:00:18]} 69. Ka4 {[%clk 0:00:17]}  Qb2 {[%clk 0:00:18]} 70. Ka5 {[%clk 0:00:18]}  Kc5 {[%clk 0:00:18]} 71. Ka6 {[%clk 0:00:18]}  Qb6# {[%clk 0:00:19]} 0-1


[Site "https://www.chess.com"]

[Event "Titled Tuesday Blitz November 07 Early 2023"]
[White "missponyo10"]
[Black "Maltsevskaya, Aleksandra"]
[BlackFideId "24174041"]
[WhiteElo "1989"]
[BlackElo "2668"]
[Result "1-0"]
[Round "2"]
[TimeControl "180+1"]
[Date "2023.11.07"]
[WhiteClock "0:01:23"]
[BlackClock "0:01:16"]
[Board "114"]

1. e4 {[%clk 0:02:55]}  c6 {[%clk 0:02:49]} 2. d4 {[%clk 0:02:55]}  d5 {[%clk 0:02:50]} 3. Nd2 {[%clk 0:02:55]}  dxe4 {[%clk 0:02:49]} 4. Nxe4 {[%clk 0:02:55]}  Nf6 {[%clk 0:02:50]} 5. Nxf6+ {[%clk 0:02:55]}  exf6 {[%clk 0:02:51]} 6. c3 {[%clk 0:02:55]}  Bd6 {[%clk 0:02:52]} 7. Bd3 {[%clk 0:02:55]}  O-O {[%clk 0:02:53]} 8. Qc2 {[%clk 0:02:54]}  Re8+ {[%clk 0:02:53]} 9. Ne2 {[%clk 0:02:55]}  h5 {[%clk 0:02:54]} 10. Be3 {[%clk 0:02:52]}  Nd7 {[%clk 0:02:53]} 11. O-O-O {[%clk 0:02:51]}  Nf8 {[%clk 0:02:53]} 12. Kb1 {[%clk 0:02:49]}  b5 {[%clk 0:02:53]} 13. h3 {[%clk 0:02:43]}  a5 {[%clk 0:02:53]} 14. Rdg1 {[%clk 0:02:37]}  b4 {[%clk 0:02:53]} 15. c4 {[%clk 0:02:32]}  a4 {[%clk 0:02:53]} 16. Qc1 {[%clk 0:02:29]}  b3 {[%clk 0:02:53]} 17. a3 {[%clk 0:02:29]}  c5 {[%clk 0:02:42]} 18. d5 {[%clk 0:02:27]}  Ng6 {[%clk 0:02:39]} 19. g4 {[%clk 0:02:24]}  h4 {[%clk 0:02:39]} 20. Bxg6 {[%clk 0:02:10]}  fxg6 {[%clk 0:02:39]} 21. Nf4 {[%clk 0:02:09]}  g5 {[%clk 0:02:36]} 22. Nd3 {[%clk 0:02:09]}  Ba6 {[%clk 0:02:27]} 23. Re1 {[%clk 0:02:06]}  Re4 {[%clk 0:02:26]} 24. Bxc5 {[%clk 0:01:58]}  Rxc4 {[%clk 0:02:25]} 25. Qe3 {[%clk 0:01:58]}  Bxc5 {[%clk 0:02:12]} 26. Nxc5 {[%clk 0:01:58]}  Qxd5 {[%clk 0:02:08]} 27. Nxa6 {[%clk 0:01:43]}  Kh8 {[%clk 0:01:38]} 28. Nb4 {[%clk 0:01:36]}  Rxb4 {[%clk 0:01:38]} 29. axb4 {[%clk 0:01:33]}  a3 {[%clk 0:01:38]} 30. bxa3 {[%clk 0:01:28]}  b2 {[%clk 0:01:16]} 31. Kxb2 {[%clk 0:01:23]} 1-0


[Site "https://www.chess.com"]

[Event "Titled Tuesday Blitz November 07 Early 2023"]
[White "amanmuhammethommadov"]
[Black "Ghosh, Chanchal Kumer"]
[BlackFideId "10201858"]
[WhiteElo "2665"]
[BlackElo "1970"]
[Result "1-0"]
[Round "2"]
[TimeControl "180+1"]
[Date "2023.11.07"]
[WhiteClock "0:02:17"]
[BlackClock "0:00:11"]
[Board "115"]

1. e4 {[%clk 0:02:59]}  c5 {[%clk 0:02:59]} 2. Nf3 {[%clk 0:02:59]}  d6 {[%clk 0:02:59]} 3. d4 {[%clk 0:02:59]}  cxd4 {[%clk 0:03:00]} 4. Nxd4 {[%clk 0:03:00]}  Nf6 {[%clk 0:03:01]} 5. Nc3 {[%clk 0:03:01]}  a6 {[%clk 0:03:01]} 6. Bg5 {[%clk 0:03:01]}  e5 {[%clk 0:02:56]} 7. Nf5 {[%clk 0:03:00]}  Bxf5 {[%clk 0:02:55]} 8. Bxf6 {[%clk 0:03:01]}  Qxf6 {[%clk 0:02:45]} 9. Nd5 {[%clk 0:03:00]}  Qd8 {[%clk 0:02:40]} 10. exf5 {[%clk 0:02:59]}  Nd7 {[%clk 0:02:39]} 11. Bc4 {[%clk 0:02:58]}  b5 {[%clk 0:02:29]} 12. Bb3 {[%clk 0:02:58]}  Nf6 {[%clk 0:02:27]} 13. O-O {[%clk 0:02:55]}  Be7 {[%clk 0:02:23]} 14. a4 {[%clk 0:02:53]}  Rb8 {[%clk 0:01:55]} 15. axb5 {[%clk 0:02:51]}  axb5 {[%clk 0:01:56]} 16. Ra7 {[%clk 0:02:51]}  Nxd5 {[%clk 0:01:54]} 17. Qxd5 {[%clk 0:02:50]}  O-O {[%clk 0:01:54]} 18. Rfa1 {[%clk 0:02:48]}  b4 {[%clk 0:01:47]} 19. R1a6 {[%clk 0:02:47]}  Rc8 {[%clk 0:01:36]} 20. Rb7 {[%clk 0:02:45]}  Rc5 {[%clk 0:01:34]} 21. Qd3 {[%clk 0:02:43]}  d5 {[%clk 0:01:27]} 22. Raa7 {[%clk 0:02:42]}  Bf6 {[%clk 0:01:27]} 23. Rd7 {[%clk 0:02:42]}  e4 {[%clk 0:01:11]} 24. Qd1 {[%clk 0:02:33]}  Qb6 {[%clk 0:01:09]} 25. Bxd5 {[%clk 0:02:31]}  Bxb2 {[%clk 0:01:00]} 26. Rxf7 {[%clk 0:02:19]}  Rxf7 {[%clk 0:00:11]} 27. Ra8+ {[%clk 0:02:17]} 1-0


[Site "https://www.chess.com"]

[Event "Titled Tuesday Blitz November 07 Early 2023"]
[White "Thake, Conrad"]
[Black "Kleiman, Jake"]
[WhiteFideId "5602947"]
[BlackFideId "2020041"]
[WhiteElo "1809"]
[BlackElo "2665"]
[Result "0-1"]
[Round "2"]
[TimeControl "180+1"]
[Date "2023.11.07"]
[WhiteClock "0:00:44"]
[BlackClock "0:00:51"]
[Board "116"]

1. c4 {[%clk 0:03:00]}  e6 {[%clk 0:02:59]} 2. Nc3 {[%clk 0:03:00]}  Bb4 {[%clk 0:02:58]} 3. d4 {[%clk 0:02:59]}  Nf6 {[%clk 0:02:58]} 4. Nf3 {[%clk 0:02:59]}  c5 {[%clk 0:02:58]} 5. d5 {[%clk 0:02:52]}  exd5 {[%clk 0:02:55]} 6. cxd5 {[%clk 0:02:52]}  O-O {[%clk 0:02:53]} 7. Bg5 {[%clk 0:02:48]}  h6 {[%clk 0:02:49]} 8. Bh4 {[%clk 0:02:46]}  d6 {[%clk 0:02:44]} 9. a3 {[%clk 0:02:39]}  Bxc3+ {[%clk 0:02:38]} 10. bxc3 {[%clk 0:02:40]}  Nbd7 {[%clk 0:02:36]} 11. e3 {[%clk 0:02:34]}  Qa5 {[%clk 0:02:36]} 12. Bxf6 {[%clk 0:02:26]}  Nxf6 {[%clk 0:02:35]} 13. Qd3 {[%clk 0:02:16]}  Nxd5 {[%clk 0:02:31]} 14. Rc1 {[%clk 0:02:08]}  Qxa3 {[%clk 0:02:27]} 15. Qd2 {[%clk 0:01:46]}  Bf5 {[%clk 0:02:15]} 16. Be2 {[%clk 0:01:44]}  Nf6 {[%clk 0:02:07]} 17. O-O {[%clk 0:01:44]}  d5 {[%clk 0:01:59]} 18. Nh4 {[%clk 0:01:42]}  Bh7 {[%clk 0:01:59]} 19. Ra1 {[%clk 0:01:30]}  Qb3 {[%clk 0:01:59]} 20. Bd3 {[%clk 0:01:26]}  Bxd3 {[%clk 0:01:58]} 21. Qxd3 {[%clk 0:01:27]}  Qb6 {[%clk 0:01:46]} 22. Rfb1 {[%clk 0:01:26]}  Qc7 {[%clk 0:01:46]} 23. Nf5 {[%clk 0:01:26]}  Rfd8 {[%clk 0:01:41]} 24. Ra2 {[%clk 0:01:23]}  a6 {[%clk 0:01:29]} 25. Rab2 {[%clk 0:01:23]}  b5 {[%clk 0:01:29]} 26. Qe2 {[%clk 0:01:20]}  Qd7 {[%clk 0:01:26]} 27. Qf3 {[%clk 0:01:20]}  Qe6 {[%clk 0:01:24]} 28. Re2 {[%clk 0:01:16]}  Ne4 {[%clk 0:01:24]} 29. Rc1 {[%clk 0:01:10]}  a5 {[%clk 0:01:18]} 30. Qg4 {[%clk 0:01:10]}  Qf6 {[%clk 0:01:13]} 31. f3 {[%clk 0:01:06]}  Nd6 {[%clk 0:01:09]} 32. Nxd6 {[%clk 0:01:02]}  Rxd6 {[%clk 0:01:08]} 33. e4 {[%clk 0:00:59]}  Re8 {[%clk 0:00:59]} 34. Rce1 {[%clk 0:00:55]}  Rde6 {[%clk 0:00:56]} 35. exd5 {[%clk 0:00:52]}  Rxe2 {[%clk 0:00:56]} 36. Rxe2 {[%clk 0:00:52]}  Rxe2 {[%clk 0:00:57]} 37. Qc8+ {[%clk 0:00:52]}  Kh7 {[%clk 0:00:56]} 38. Qxc5 {[%clk 0:00:51]}  Qg5 {[%clk 0:00:52]} 39. g3 {[%clk 0:00:44]}  Qc1# {[%clk 0:00:51]} 0-1


[Site "https://www.chess.com"]

[Event "Titled Tuesday Blitz November 07 Early 2023"]
[White "Molenda, Marcin"]
[Black "Makhnev, Denis"]
[WhiteFideId "1173065"]
[BlackFideId "13707647"]
[WhiteElo "2517"]
[BlackElo "2922"]
[Result "0-1"]
[Round "2"]
[TimeControl "180+1"]
[Date "2023.11.07"]
[WhiteClock "0:00:00"]
[BlackClock "0:00:23"]
[Board "118"]

1. d4 {[%clk 0:02:59]}  d5 {[%clk 0:02:57]} 2. c4 {[%clk 0:02:59]}  e6 {[%clk 0:02:57]} 3. Nf3 {[%clk 0:02:59]}  c6 {[%clk 0:02:58]} 4. e3 {[%clk 0:02:56]}  Nf6 {[%clk 0:02:57]} 5. Bd3 {[%clk 0:02:46]}  dxc4 {[%clk 0:02:53]} 6. Bxc4 {[%clk 0:02:46]}  Nbd7 {[%clk 0:02:53]} 7. O-O {[%clk 0:02:46]}  Bd6 {[%clk 0:02:53]} 8. Nc3 {[%clk 0:02:45]}  b5 {[%clk 0:02:53]} 9. Bd3 {[%clk 0:02:43]}  O-O {[%clk 0:02:53]} 10. Ng5 {[%clk 0:02:33]}  Bb7 {[%clk 0:02:46]} 11. a3 {[%clk 0:02:25]}  a5 {[%clk 0:02:37]} 12. Nce4 {[%clk 0:02:19]}  Be7 {[%clk 0:02:36]} 13. Nxf6+ {[%clk 0:02:19]}  Nxf6 {[%clk 0:02:37]} 14. Qf3 {[%clk 0:02:17]}  h6 {[%clk 0:02:30]} 15. Ne4 {[%clk 0:02:16]}  Nd7 {[%clk 0:02:22]} 16. Bd2 {[%clk 0:02:09]}  Qb6 {[%clk 0:02:22]} 17. b4 {[%clk 0:02:07]}  axb4 {[%clk 0:02:19]} 18. axb4 {[%clk 0:02:08]}  Rad8 {[%clk 0:02:15]} 19. Nc5 {[%clk 0:02:06]}  Bc8 {[%clk 0:01:52]} 20. Bc3 {[%clk 0:01:57]}  Qc7 {[%clk 0:01:44]} 21. Be4 {[%clk 0:01:34]}  Nb8 {[%clk 0:01:27]} 22. Rfc1 {[%clk 0:01:25]}  Bd6 {[%clk 0:01:21]} 23. h4 {[%clk 0:01:17]}  e5 {[%clk 0:01:14]} 24. Ra8 {[%clk 0:00:59]}  exd4 {[%clk 0:00:41]} 25. Bxd4 {[%clk 0:00:58]}  Be5 {[%clk 0:00:41]} 26. Bxe5 {[%clk 0:00:42]}  Qxe5 {[%clk 0:00:42]} 27. Qf4 {[%clk 0:00:26]}  Qxf4 {[%clk 0:00:42]} 28. exf4 {[%clk 0:00:26]}  Nd7 {[%clk 0:00:43]} 29. Rxc8 {[%clk 0:00:20]}  Rxc8 {[%clk 0:00:39]} 30. Nxd7 {[%clk 0:00:20]}  Rfd8 {[%clk 0:00:39]} 31. Ne5 {[%clk 0:00:18]}  Rd4 {[%clk 0:00:38]} 32. f3 {[%clk 0:00:12]}  Rxb4 {[%clk 0:00:36]} 33. Nxc6 {[%clk 0:00:12]}  Kf8 {[%clk 0:00:37]} 34. Rd1 {[%clk 0:00:07]}  Rxe4 {[%clk 0:00:35]} 35. fxe4 {[%clk 0:00:05]}  Rxc6 {[%clk 0:00:36]} 36. Rd8+ {[%clk 0:00:04]}  Ke7 {[%clk 0:00:36]} 37. Rb8 {[%clk 0:00:04]}  Rc1+ {[%clk 0:00:30]} 38. Kf2 {[%clk 0:00:04]}  Rb1 {[%clk 0:00:31]} 39. Kf3 {[%clk 0:00:03]}  g6 {[%clk 0:00:23]} 40. Rb6 {[%clk 0:00:02]}  b4 {[%clk 0:00:23]} 41. f5 {[%clk 0:00:01]}  b3 {[%clk 0:00:22]} 42. fxg6 {[%clk 0:00:01]}  fxg6 {[%clk 0:00:22]} 43. Rxg6 {[%clk 0:00:00]}  b2 {[%clk 0:00:23]} 0-1


[Site "https://www.chess.com"]

[Event "Titled Tuesday Blitz November 07 Early 2023"]
[White "dodoucb"]
[Black "Melkumyan, Hrant"]
[BlackFideId "13302485"]
[WhiteElo "2480"]
[BlackElo "2886"]
[Result "0-1"]
[Round "2"]
[TimeControl "180+1"]
[Date "2023.11.07"]
[WhiteClock "0:00:17"]
[BlackClock "0:01:16"]
[Board "119"]

1. d4 {[%clk 0:02:59]}  d5 {[%clk 0:02:59]} 2. Nf3 {[%clk 0:03:00]}  Nf6 {[%clk 0:02:59]} 3. c4 {[%clk 0:03:00]}  e6 {[%clk 0:02:58]} 4. Nc3 {[%clk 0:03:00]}  Nbd7 {[%clk 0:02:57]} 5. Bg5 {[%clk 0:02:59]}  Be7 {[%clk 0:02:57]} 6. e3 {[%clk 0:02:58]}  h6 {[%clk 0:02:57]} 7. Bh4 {[%clk 0:02:58]}  O-O {[%clk 0:02:58]} 8. Bd3 {[%clk 0:02:58]}  a6 {[%clk 0:02:54]} 9. cxd5 {[%clk 0:02:54]}  exd5 {[%clk 0:02:54]} 10. O-O {[%clk 0:02:52]}  Re8 {[%clk 0:02:53]} 11. Rc1 {[%clk 0:02:52]}  c6 {[%clk 0:02:54]} 12. a3 {[%clk 0:02:46]}  Nf8 {[%clk 0:02:52]} 13. Ne5 {[%clk 0:02:43]}  N6d7 {[%clk 0:02:44]} 14. Bg3 {[%clk 0:02:17]}  Nxe5 {[%clk 0:02:38]} 15. Bxe5 {[%clk 0:02:18]}  Bd6 {[%clk 0:02:36]} 16. Bxd6 {[%clk 0:02:10]}  Qxd6 {[%clk 0:02:37]} 17. Bb1 {[%clk 0:02:09]}  g6 {[%clk 0:02:34]} 18. Na4 {[%clk 0:02:06]}  Nd7 {[%clk 0:02:27]} 19. b4 {[%clk 0:02:04]}  Nf6 {[%clk 0:02:28]} 20. Nc5 {[%clk 0:02:02]}  Re7 {[%clk 0:02:26]} 21. Re1 {[%clk 0:01:55]}  h5 {[%clk 0:02:23]} 22. f3 {[%clk 0:01:52]}  b6 {[%clk 0:02:06]} 23. Nd3 {[%clk 0:01:50]}  a5 {[%clk 0:02:07]} 24. Qd2 {[%clk 0:01:49]}  axb4 {[%clk 0:01:53]} 25. axb4 {[%clk 0:01:50]}  Ba6 {[%clk 0:01:53]} 26. Ne5 {[%clk 0:01:48]}  Rc8 {[%clk 0:01:46]} 27. f4 {[%clk 0:01:16]}  Bb5 {[%clk 0:01:37]} 28. f5 {[%clk 0:01:13]}  Ne4 {[%clk 0:01:22]} 29. Bxe4 {[%clk 0:01:12]}  dxe4 {[%clk 0:01:23]} 30. fxg6 {[%clk 0:01:01]}  Rxe5 {[%clk 0:01:19]} 31. gxf7+ {[%clk 0:01:00]}  Kf8 {[%clk 0:01:19]} 32. Qf2 {[%clk 0:00:34]}  Rg5 {[%clk 0:01:17]} 33. Qh4 {[%clk 0:00:17]}  Qg6 {[%clk 0:01:16]} 0-1


[Site "https://www.chess.com"]

[Event "Titled Tuesday Blitz November 07 Early 2023"]
[White "Perez Rodriguez, Jennifer"]
[Black "Timofeev, Artyom"]
[WhiteFideId "3507831"]
[BlackFideId "4140419"]
[WhiteElo "2448"]
[BlackElo "2848"]
[Result "0-1"]
[Round "2"]
[TimeControl "180+1"]
[Date "2023.11.07"]
[WhiteClock "0:01:22"]
[BlackClock "0:02:08"]
[Board "121"]

1. e4 {[%clk 0:02:57]}  c6 {[%clk 0:02:59]} 2. Nc3 {[%clk 0:02:57]}  d5 {[%clk 0:02:59]} 3. Nf3 {[%clk 0:02:57]}  dxe4 {[%clk 0:02:55]} 4. Nxe4 {[%clk 0:02:58]}  Nf6 {[%clk 0:02:55]} 5. Qe2 {[%clk 0:02:58]}  Bf5 {[%clk 0:02:51]} 6. Nxf6+ {[%clk 0:02:50]}  gxf6 {[%clk 0:02:51]} 7. d4 {[%clk 0:02:51]}  h5 {[%clk 0:02:48]} 8. Bf4 {[%clk 0:02:42]}  Nd7 {[%clk 0:02:43]} 9. O-O-O {[%clk 0:02:39]}  Qa5 {[%clk 0:02:37]} 10. Kb1 {[%clk 0:02:38]}  O-O-O {[%clk 0:02:36]} 11. Qd2 {[%clk 0:02:34]}  Qxd2 {[%clk 0:02:34]} 12. Rxd2 {[%clk 0:02:32]}  h4 {[%clk 0:02:34]} 13. Bc4 {[%clk 0:02:26]}  e6 {[%clk 0:02:33]} 14. Bd3 {[%clk 0:02:18]}  Bxd3 {[%clk 0:02:23]} 15. Rxd3 {[%clk 0:02:18]}  Nb6 {[%clk 0:02:23]} 16. h3 {[%clk 0:02:12]}  Nd5 {[%clk 0:02:20]} 17. Bd2 {[%clk 0:02:10]}  Bd6 {[%clk 0:02:20]} 18. c4 {[%clk 0:02:04]}  Nf4 {[%clk 0:02:19]} 19. Bxf4 {[%clk 0:02:04]}  Bxf4 {[%clk 0:02:19]} 20. Kc2 {[%clk 0:02:00]}  Rdg8 {[%clk 0:02:18]} 21. Ne1 {[%clk 0:01:54]}  f5 {[%clk 0:02:17]} 22. d5 {[%clk 0:01:47]}  Kc7 {[%clk 0:02:14]} 23. dxe6 {[%clk 0:01:35]}  fxe6 {[%clk 0:02:14]} 24. Kd1 {[%clk 0:01:35]}  e5 {[%clk 0:02:12]} 25. Ke2 {[%clk 0:01:33]}  e4 {[%clk 0:02:12]} 26. Rd2 {[%clk 0:01:31]}  Bxd2 {[%clk 0:02:11]} 27. Kxd2 {[%clk 0:01:30]}  f4 {[%clk 0:02:11]} 28. Ke2 {[%clk 0:01:22]}  Rg5 {[%clk 0:02:08]} 0-1


[Site "https://www.chess.com"]

[Event "Titled Tuesday Blitz November 07 Early 2023"]
[White "Gharibyan, Mamikon"]
[Black "Muhammad Shahzeb"]
[WhiteFideId "13308300"]
[BlackFideId "7804806"]
[WhiteElo "2758"]
[BlackElo "2406"]
[Result "1-0"]
[Round "2"]
[TimeControl "180+1"]
[Date "2023.11.07"]
[WhiteClock "0:00:14"]
[BlackClock "0:00:00"]
[Board "123"]

1. e4 {[%clk 0:02:59]}  d5 {[%clk 0:02:58]} 2. exd5 {[%clk 0:02:57]}  Nf6 {[%clk 0:02:58]} 3. Nc3 {[%clk 0:02:56]}  Nxd5 {[%clk 0:02:59]} 4. Bc4 {[%clk 0:02:57]}  Nxc3 {[%clk 0:02:59]} 5. Qf3 {[%clk 0:02:56]}  e6 {[%clk 0:02:59]} 6. bxc3 {[%clk 0:02:53]}  Nc6 {[%clk 0:02:59]} 7. d4 {[%clk 0:02:49]}  Bd6 {[%clk 0:02:56]} 8. Ne2 {[%clk 0:02:46]}  O-O {[%clk 0:02:55]} 9. O-O {[%clk 0:02:46]}  e5 {[%clk 0:02:54]} 10. Be3 {[%clk 0:02:42]}  Qh4 {[%clk 0:02:41]} 11. Qg3 {[%clk 0:02:23]}  Qh5 {[%clk 0:02:33]} 12. dxe5 {[%clk 0:02:13]}  Bxe5 {[%clk 0:02:26]} 13. Nf4 {[%clk 0:02:08]}  Qf5 {[%clk 0:02:01]} 14. Bd3 {[%clk 0:02:06]}  Qg4 {[%clk 0:01:52]} 15. Qxg4 {[%clk 0:01:59]}  Bxg4 {[%clk 0:01:51]} 16. Rab1 {[%clk 0:02:00]}  Bc8 {[%clk 0:01:36]} 17. c4 {[%clk 0:01:53]}  Nd4 {[%clk 0:01:26]} 18. Nd5 {[%clk 0:01:49]}  Nc6 {[%clk 0:01:07]} 19. Rfe1 {[%clk 0:01:44]}  b6 {[%clk 0:00:39]} 20. Be4 {[%clk 0:01:42]}  Bb7 {[%clk 0:00:34]} 21. Ne7+ {[%clk 0:01:12]}  Nxe7 {[%clk 0:00:33]} 22. Bxb7 {[%clk 0:01:13]}  Rab8 {[%clk 0:00:19]} 23. Bf3 {[%clk 0:01:12]}  Bd6 {[%clk 0:00:11]} 24. c3 {[%clk 0:01:06]}  Nf5 {[%clk 0:00:11]} 25. Bc1 {[%clk 0:01:06]}  Rfe8 {[%clk 0:00:11]} 26. Bd2 {[%clk 0:01:01]}  g6 {[%clk 0:00:09]} 27. g3 {[%clk 0:01:01]}  h5 {[%clk 0:00:09]} 28. Kg2 {[%clk 0:01:01]}  Rxe1 {[%clk 0:00:08]} 29. Rxe1 {[%clk 0:01:00]}  Ng7 {[%clk 0:00:09]} 30. Bd5 {[%clk 0:01:00]}  Re8 {[%clk 0:00:08]} 31. Rd1 {[%clk 0:00:50]}  Re2 {[%clk 0:00:08]} 32. Kf3 {[%clk 0:00:50]}  Re8 {[%clk 0:00:08]} 33. Be3 {[%clk 0:00:48]}  Nf5 {[%clk 0:00:07]} 34. Bg5 {[%clk 0:00:47]}  Kg7 {[%clk 0:00:06]} 35. h3 {[%clk 0:00:47]}  f6 {[%clk 0:00:07]} 36. Bc1 {[%clk 0:00:47]}  Ne7 {[%clk 0:00:07]} 37. Re1 {[%clk 0:00:37]}  Rd8 {[%clk 0:00:06]} 38. a4 {[%clk 0:00:31]}  Nxd5 {[%clk 0:00:05]} 39. cxd5 {[%clk 0:00:32]}  Rd7 {[%clk 0:00:06]} 40. c4 {[%clk 0:00:31]}  Kf7 {[%clk 0:00:06]} 41. Bb2 {[%clk 0:00:28]}  Rd8 {[%clk 0:00:05]} 42. Re6 {[%clk 0:00:25]}  Be7 {[%clk 0:00:05]} 43. Ke4 {[%clk 0:00:22]}  Rd6 {[%clk 0:00:05]} 44. Rxd6 {[%clk 0:00:18]}  Bxd6 {[%clk 0:00:06]} 45. g4 {[%clk 0:00:18]}  hxg4 {[%clk 0:00:05]} 46. hxg4 {[%clk 0:00:19]}  g5 {[%clk 0:00:05]} 47. Kf5 {[%clk 0:00:19]}  Be7 {[%clk 0:00:06]} 48. Bc1 {[%clk 0:00:19]}  Bd6 {[%clk 0:00:06]} 49. Bb2 {[%clk 0:00:19]}  Be7 {[%clk 0:00:06]} 50. Bc3 {[%clk 0:00:20]}  Bd8 {[%clk 0:00:05]} 51. a5 {[%clk 0:00:20]}  a6 {[%clk 0:00:04]} 52. f3 {[%clk 0:00:16]}  bxa5 {[%clk 0:00:03]} 53. Bxa5 {[%clk 0:00:16]}  Ke7 {[%clk 0:00:04]} 54. c5 {[%clk 0:00:15]}  Kf7 {[%clk 0:00:00]} 55. d6 {[%clk 0:00:14]} 1-0


[Site "https://www.chess.com"]